{"text_format":"3","workbook":"xlsx","n_sheets":4,"sheets":["התחלה","הוצאות","הכנסות","סיכום רווח והפסד"],"not_rendered":{"charts":1},"read":"whole","date_system":"1900"}

{"sheet":"התחלה","index":0,"n_rows":8,"n_cols":2,"rows_kept":8}
[null,"אודות תבנית זו"]
[null,"השתמש בחוברת עבודה זו של תקציב אירוע כדי לעקוב אחר ההוצאות וההכנסות עבור אירוע."]
[null,"מלא את שם האירוע והזן פרטים בטבלאות שבגליון העבודה 'הוצאות' ובגליון העבודה 'הכנסות'."]
[null,"סה\"כ ההוצאות וסה\"כ ההכנסות מחושבות באופן אוטומטי."]
[null,"סיכום הרווח וההפסד והתרשים מתעדכנים באופן אוטומטי בגליון העבודה 'סיכום רווח והפסד'."]
[null,"הערה: "]
[null,"הוראות נוספות סופקו בעמודה A בכל גליון עבודה. טקסט זה הוסתר במכוון. כדי להסיר את הטקסט, בחר את עמודה A ולאחר מכן בחר 'מחק'. "]
[null,"לקבלת מידע נוסף אודות הטבלאות, הקש SHIFT ולאחר מכן F10 בתוך טבלה, בחר את האפשרות 'טבלה' ולאחר מכן בחר 'טקסט חלופי'"]

{"sheet":"הוצאות","index":1,"n_rows":32,"n_cols":8,"rows_kept":32,"merged":[[0,1,0,2],[0,3,0,4],[2,1,3,1]]}
["הזן הוצאות משוערות והוצאות בפועל עבור כל קטגוריה בטבלאות המתאימות שביגליון עבודה זה. הזן את שם האירוע בתא D1 כדי להתאים אישית את הכותרת של גיליון עבודה זה וגיליונות העבודה האחרים. כותרת המשנה של גליון עבודה זה מופיעה בתא H1. הוראות שימוש בגליון עבודה זה מופיעות בתאים שבעמודה זו. ההוראה הבאה מופיעה בתא A3.","תקציב אירוע עבור",null,"שם האירוע",{"$nulls":3},"הוצאות"]
[]
["התווית 'סה\"כ הוצאות' מופיעה בתא משמאל, התווית 'משוערת' מופיעה בתא G3, והתווית 'בפועל' מופיעה בתא H3.","סה\"כ הוצאות",{"$nulls":4},"משוערת","בפועל"]
["סה\"כ ההוצאות המשוערות מופיע בתא G4, וסה\"כ ההוצאות בפועל בתא H4 מחושב באופן אוטומטי. ההוראה הבאה מופיעה בתא A6.",{"$nulls":5},{"$f":"SUM(C11,C19,C25,C32,G11,G19,G24)","v":{"v":882,"d":"₪ 882.00"}},{"$f":"SUM(D11,D19,D25,D32,H11,H19,H24)","v":{"v":302,"d":"₪ 302.00"}}]
[]
["הזן את ההוצאות על האתר בטבלה שמתחילה בתא משמאל ואת ההוצאות על הכיבוד בטבלה שמתחילה בתא F6. ההוראה הבאה מופיעה בתא A13.","אתר","משוערת","בפועל",null,"כיבוד","משוערת","בפועל"]
[null,"שכירת חדר ואולם",{"v":500,"d":"₪ 500.00"},null,null,"מזון"]
[null,"צוות באתר",{"$nulls":3},"משקאות",{"v":20,"d":"₪ 20.00"}]
[null,"ציוד",{"$nulls":3},"מפות",null,{"v":20,"d":"₪ 20.00"}]
[null,"שולחנות וכיסאות",{"$nulls":3},"צוות ודמי שירות"]
[null,"סה\"כ",{"$f":"SUBTOTAL(109,ההוצאות_על_האתר[משוערת])","v":{"v":500,"d":"₪ 500.00"}},{"$f":"SUBTOTAL(103,ההוצאות_על_האתר[בפועל])","v":{"v":0,"d":"₪ 0.00"}},null,"סה\"כ",{"$f":"SUBTOTAL(109,הוצאות_על_כיבוד[משוערת])","v":{"v":20,"d":"₪ 20.00"}},{"$f":"SUBTOTAL(103,הוצאות_על_כיבוד[בפועל])","v":{"v":1,"d":"₪ 1.00"}}]
[]
["הזן את ההוצאות על הקישוטים בטבלה שמתחילה בתא משמאל ואת ההוצאות על התוכנית בטבלה שמתחילה בתא F13. ההוראה הבאה מופיעה בתא A21.","קישוטים","משוערת","בפועל",null,"תוכנית","משוערת","בפועל"]
[null,"פרחים",{"v":200,"d":"₪ 200.00"},{"v":300,"d":"₪ 300.00"},null,"הופעה"]
[null,"נרות",{"$nulls":3},"מרצים",{"v":30,"d":"₪ 30.00"}]
[null,"תאורה",{"$nulls":3},"נסיעות"]
[null,"בלונים",{"$nulls":3},"מלון"]
[null,"קישוטי נייר",{"$nulls":3},"אחר"]
[null,"סה\"כ",{"$f":"SUBTOTAL(109,הוצאות_על_קישוטים[משוערת])","v":{"v":200,"d":"₪ 200.00"}},{"$f":"SUBTOTAL(109,הוצאות_על_קישוטים[בפועל])","v":{"v":300,"d":"₪ 300.00"}},null,"סה\"כ",{"$f":"SUBTOTAL(109,הוצאות_על_התוכנית[משוערת])","v":{"v":30,"d":"₪ 30.00"}},{"$f":"SUBTOTAL(103,הוצאות_על_התוכנית[בפועל])","v":{"v":0,"d":"₪ 0.00"}}]
[]
["הזן את ההוצאות על הפרסום בטבלה שמתחילה בתא משמאל ואת ההוצאות על הפרסים בטבלה שמתחילה בתא F21. ההוראה הבאה מופיעה בתא A27","פרסום","משוערת","בפועל",null,"פרסים","משוערת","בפועל"]
[null,"גרפיקה",{"$nulls":3},"גביעים/מדליות"]
[null,"צילום/הדפסה",{"v":20,"d":"₪ 20.00"},null,null,"מתנות",{"v":100,"d":"₪ 100.00"}]
[null,"דמי דואר",{"$nulls":3},"סה\"כ",{"$f":"SUBTOTAL(109,הוצאות_על_פרסים[משוערת])","v":{"v":100,"d":"₪ 100.00"}},{"$f":"SUBTOTAL(103,הוצאות_על_פרסים[בפועל])","v":{"v":0,"d":"₪ 0.00"}}]
[null,"סה\"כ",{"$f":"SUBTOTAL(109,הוצאות_על_פרסום[משוערת])","v":{"v":20,"d":"₪ 20.00"}},{"$f":"SUBTOTAL(103,הוצאות_על_פרסום[בפועל])","v":{"v":0,"d":"₪ 0.00"}}]
[]
["הזן את ההוצאות על שונות בטבלה שמתחילה בתא משמאל.","שונות","משוער","בפועל"]
[null,"טלפון",null,{"v":13,"d":"₪ 13.00"}]
[null,"תחבורה",{"v":12,"d":"₪ 12.00"}]
[null,"מוצרי נייר"]
[null,"שירותי פקס"]
[null,"סה\"כ",{"$f":"SUBTOTAL(109,הוצאות_שונות[משוער])","v":{"v":12,"d":"₪ 12.00"}},{"$f":"SUBTOTAL(103,הוצאות_שונות[בפועל])","v":{"v":1,"d":"₪ 1.00"}}]

{"sheet":"הכנסות","index":2,"n_rows":29,"n_cols":7,"rows_kept":29,"merged":[[0,1,0,2],[2,1,3,1]]}
["הזן את ההכנסות המשוערות ואת ההכנסות בפועל עבור כל קטגוריה בטבלאות המתאימות בגליון עבודה זה. הכותרת של גליון עבודה זה מתעדכנת באופן אוטומטי בתאים משמאל. כותרת המשנה מופיעה בתא G1. הוראות שימוש בגליון עבודה זה מופיעות בתאים שבעמודה זו. ההוראה הבאה מופיעה בתא A3.",{"$f":"הוצאות!B1","v":"תקציב אירוע עבור"},null,{"$f":"הוצאות!D1","v":"שם האירוע"},null,null,"הכנסות"]
[]
["התווית 'סה\"כ הכנסות' מופיעה בתא משמאל, התווית 'משוערת' מופיעה בתא F3, והתווית 'בפועל' מופיעה בתא G3.","סה\"כ הכנסות",{"$nulls":3},"משוערת","בפועל"]
["סה\"כ ההכנסות המשוערות מחושב באופן אוטומטי בתא F4, וסה\"כ ההכנסות בפועל מחושב באופן אוטומטי בתא G4.",{"$nulls":4},{"$f":"SUM(כרטיסי_כניסה[[#Totals],[הכנסה משוערת]],פרסומות_בתוכנייה[[#Totals],[הכנסה משוערת]],מציגים_או_ספקים[[#Totals],[הכנסה משוערת]],מכירת_פריטים[[#Totals],[הכנסה משוערת]])","v":{"v":1936,"d":"₪ 1,936.00"}},{"$f":"SUM(כרטיסי_כניסה[[#Totals],[הכנסה בפועל]],פרסומות_בתוכנייה[[#Totals],[הכנסה בפועל]],מציגים_או_ספקים[[#Totals],[הכנסה בפועל]],מכירת_פריטים[[#Totals],[הכנסה בפועל]])","v":{"v":1831,"d":"₪ 1,831.00"}}]
["התווית 'כרטיסי כניסה' מופיעה בתא משמאל.","כרטיסי כניסה"]
["הזן את המספר המשוער והמספר בפועל של כרטיסי הכניסה עם תעריפי הכרטיסים בטבלה שמתחילה בתא משמאל. ההכנסה המשוערת וההכנסה בפועל מכרטיסי הכניסה מחושבות באופן אוטומטי. ההוראה הבאה מופיעה בתא A11.","מס' משוער","מס' בפועל","סוג","מחיר","הכנסה משוערת","הכנסה בפועל"]
[null,300,278,"מבוגרים",{"v":5,"d":"₪ 5.00"},{"$f":"B7*E7","v":{"v":1500,"d":"₪ 1,500.00"}},{"$f":"C7*E7","v":{"v":1390,"d":"₪ 1,390.00"}}]
[null,197,195,"ילדים",{"v":2,"d":"₪ 2.00"},{"$f":"B8*E8","v":{"v":394,"d":"₪ 394.00"}},{"$f":"C8*E8","v":{"v":390,"d":"₪ 390.00"}}]
[null,42,51,"אחר",{"v":1,"d":"₪ 1.00"},{"$f":"B9*E9","v":{"v":42,"d":"₪ 42.00"}},{"$f":"C9*E9","v":{"v":51,"d":"₪ 51.00"}}]
[null,"סה\"כ",{"$nulls":3},{"$f":"SUBTOTAL(109,כרטיסי_כניסה[הכנסה משוערת])","v":{"v":1936,"d":"₪ 1,936.00"}},{"$f":"SUBTOTAL(109,כרטיסי_כניסה[הכנסה בפועל])","v":{"v":1831,"d":"₪ 1,831.00"}}]
["התווית 'פרסומות בתוכנייה' מופיעה בתא משמאל.","פרסומות בתוכנייה"]
["הזן את המספר המשוער והמספר בפועל של הפרסומות בתוכנייה ואת תעריפי הפרסום בטבלה שמתחילה בתא משמאל. ההכנסה המשוערת וההכנסה בפועל מהפרסומות מחושבות באופן אוטומטי. ההוראה הבאה מופיעה בתא A17.","מס' משוער","מס' בפועל","סוג","מחיר","הכנסה משוערת","הכנסה בפועל"]
[null,12,null,"כריכות",null,{"$f":"B13*E13","v":{"v":0,"d":"₪ 0.00"}},{"$f":"C13*E13","v":{"v":0,"d":"₪ 0.00"}}]
[null,null,158,"חצי עמוד",null,{"$f":"B14*E14","v":{"v":0,"d":"₪ 0.00"}},{"$f":"C14*E14","v":{"v":0,"d":"₪ 0.00"}}]
[null,4,null,"רבע עמוד",null,{"$f":"B15*E15","v":{"v":0,"d":"₪ 0.00"}},{"$f":"C15*E15","v":{"v":0,"d":"₪ 0.00"}}]
[null,"סה\"כ",{"$nulls":3},{"$f":"SUBTOTAL(109,פרסומות_בתוכנייה[הכנסה משוערת])","v":{"v":0,"d":"₪ 0.00"}},{"$f":"SUBTOTAL(109,פרסומות_בתוכנייה[הכנסה בפועל])","v":{"v":0,"d":"₪ 0.00"}}]
["התווית 'מציגים או מוכרים' מופיעה בתא משמאל.","מציגים/מוכרים"]
["הזן את המספר המשוער והמספר בפועל של המציגים והמוכרים ואת תעריפי הדוכנים בטבלה שמתחילה בתא משמאל. ההכנסה המשוערת וההכנסה בפועל מחושבות באופן אוטומטי. ההוראה הבאה מופיעה בתא A23.","מס' משוער","מס' בפועל","סוג","מחיר","הכנסה משוערת","הכנסה בפועל"]
[null,23,null,"דוכנים גדולים",null,{"$f":"B19*E19","v":{"v":0,"d":"₪ 0.00"}},{"$f":"C19*E19","v":{"v":0,"d":"₪ 0.00"}}]
[null,354,null,"דוכנים בינוניים",null,{"$f":"B20*E20","v":{"v":0,"d":"₪ 0.00"}},{"$f":"C20*E20","v":{"v":0,"d":"₪ 0.00"}}]
[null,56,null,"דוכנים קטנים",null,{"$f":"B21*E21","v":{"v":0,"d":"₪ 0.00"}},{"$f":"C21*E21","v":{"v":0,"d":"₪ 0.00"}}]
[null,"סה\"כ",{"$nulls":3},{"$f":"SUBTOTAL(109,מציגים_או_ספקים[הכנסה משוערת])","v":{"v":0,"d":"₪ 0.00"}},{"$f":"SUBTOTAL(109,מציגים_או_ספקים[הכנסה בפועל])","v":{"v":0,"d":"₪ 0.00"}}]
["התווית 'מכירת פריטים' מופיעה בתא משמאל.","מכירת פריטים"]
["הזן את המספר המשוער והמספר בפועל של הפריטים שנמכרו ואת תעריפי הפריטים בטבלה שמתחילה בתא משמאל. ההכנסה המשוערת וההכנסה בפועל מחושבות באופן אוטומטי.","מס' משוער","מס' בפועל","סוג","מחיר","הכנסה משוערת","הכנסה בפועל"]
[{"$nulls":3},"פריטים",null,{"$f":"B25*E25","v":{"v":0,"d":"₪ 0.00"}},{"$f":"C25*E25","v":{"v":0,"d":"₪ 0.00"}}]
[null,123,null,"פריטים",null,{"$f":"B26*E26","v":{"v":0,"d":"₪ 0.00"}},{"$f":"C26*E26","v":{"v":0,"d":"₪ 0.00"}}]
[{"$nulls":3},"פריטים",null,{"$f":"B27*E27","v":{"v":0,"d":"₪ 0.00"}},{"$f":"C27*E27","v":{"v":0,"d":"₪ 0.00"}}]
[null,13,null,"פריטים",null,{"$f":"B28*E28","v":{"v":0,"d":"₪ 0.00"}},{"$f":"C28*E28","v":{"v":0,"d":"₪ 0.00"}}]
[null,"סה\"כ",{"$nulls":3},{"$f":"SUBTOTAL(109,מכירת_פריטים[הכנסה משוערת])","v":{"v":0,"d":"₪ 0.00"}},{"$f":"SUBTOTAL(109,מכירת_פריטים[הכנסה בפועל])","v":{"v":0,"d":"₪ 0.00"}}]

{"sheet":"סיכום רווח והפסד","index":3,"n_rows":8,"n_cols":7,"rows_kept":8,"merged":[[0,1,0,2]]}
["סיכום הרווח וההפסד והתרשים שמציג את סה\"כ ההכנסות וסה\"כ ההוצאות מתעדכנים באופן אוטומטי בגליון עבודה זה. הכותרת של גליון עבודה זה מתעדכנת באופן אוטומטי בתאים משמאל. כותרת המשנה מופיעה בתאים G1 ו- G2. הוראות שימוש בגליון עבודה זה מופיעות בתאים שבעמודה זו. ההוראה הבאה מופיעה בתא A3.",{"$f":"הוצאות!B1","v":"תקציב אירוע עבור"},null,{"$f":"הוצאות!D1","v":"שם האירוע"},null,null,"רווח "]
[{"$nulls":6},"סיכום הפסד"]
["תרשים עמודות שמשווה בין ההכנסות וההוצאות המשוערות לבין ההכנסות וההוצאות בפועל מופיע בתא E3.",{"$nulls":3},"תרשים עמודות שמציג את ההכנסות וההוצאות המשוערות ואת ההכנסות וההוצאות בפועל מופיע בתא זה."]
["טבלת הסיכום שמתחילה בתא משמאל מתעדכנת באופן אוטומטי. ההוראה הבאה מופיעה בתא A8."," סך הכל","משוער","בפועל"]
[null,"סה\"כ הכנסות",{"$f":"הכנסות!F10","v":{"v":1936,"d":"₪ 1,936.00"}},{"$f":"הכנסות!F4","v":{"v":1936,"d":"₪ 1,936.00"}}]
[null,"סה\"כ הוצאות",{"$f":"הוצאות!G4","v":{"v":882,"d":"₪ 882.00"}},{"$f":"הוצאות!H4","v":{"v":302,"d":"₪ 302.00"}}]
[]
["הרווח/הפסד המשוער מחושב באופן אוטומטי בתא C8, והרווח/הפסד בפועל מחושב באופן אוטומטי בתא D8.","סך הכל רווח\n(או הפסד)",{"$f":"C5-C6","v":{"v":1054,"d":"₪ 1,054.00"}},{"$f":"D5-D6","v":{"v":1634,"d":"₪ 1,634.00"}}]